[Event "Bamberg-Open 2019"]
[Site "Bamberg"]
[Date "2019.06.01"]
[Round "6.21"]
[White "Korolev, Alexandr"]
[Black "Spitzl, Philipp"]
[Result "0-1"]
[ECO "C03"]
[WhiteElo "2143"]
[BlackElo "2013"]
[Annotator "RC"]
[PlyCount "174"]
[EventDate "2019.05.12"]
[EventType "swiss"]
[EventCountry "GER"]
[SourceTitle "playchess.com"]
[Source "ChessBase"]
[SourceQuality "1"]
[TimeControl "40/5400+30:900+30"]

1. e4 {[%emt 0:00:00]} e6 {[%emt 0:00:00]} 2. d4 {[%emt 0:00:00]} d5 {[%emt 0:00:00]} 3. Nd2 {[%emt 0:00:00]} Be7 {[%emt 0:00:01]} 4. Bd3 {[%emt 0:00:58]} c5 {[%emt 0:00:39]} 5. dxc5 {[%emt 0:00:50]} Nf6 {[%emt 0:01:47]} 6. Qe2 {[%emt 0:05:23]} a5 {[%emt 0:01:34]} 7. Ngf3 {[%emt 0:04:48]} O-O {[%emt 0:05:48]} 8. O-O {[%emt 0:01:59]} Na6 {[%emt 0:00:35]} 9. e5 {[%emt 0:08:23]} Nd7 {[%emt 0:10:30]} 10. Nd4 {[%emt 0:09:21]} Ndxc5 {[%emt 0:06:02]} 11. Bb5 {[%emt 0:00:21]} Nc7 {[%emt 0:03:11]} 12. a4 {[%emt 0:05:24]} Nxb5 {[%emt 0:01:52]} 13. axb5 {[%emt 0:00:39]} Bd7 {[%emt 0:03:34]} 14. Ra3 {[%emt 0:00:24]} f6 {[%emt 0:11:50]} 15. f4 {[%emt 0:00:18]} fxe5 {[%emt 0:03:57]} 16. fxe5 {[%emt 0:00:05]} Rxf1+ {[%emt 0:01:23]} 17. Qxf1 {[%emt 0:01:02]} Qb6 {[%emt 0:02:43]} 18. Rf3 {[%emt 0:11:32]} Rf8 {[%emt 0:08:39]} 19. Kh1 {[%emt 0:03:19]} Qc7 {[%emt 0:05:51]} 20. Rxf8+ {[%emt 0:01:24]} Bxf8 {[%emt 0:00:02]} 21. Qe2 {[%emt 0:02:55]} Qd8 {[%emt 0:04:28]} 22. N2f3 {[%emt 0:02:35]} Ne4 {[%emt 0:01:33]} 23. Be3 {[%emt 0:03:56]} Be7 {[%emt 0:02:15]} 24. c4 {[%emt 0:02:09]} Qc8 {[%emt 0:03:08]} 25. cxd5 {[%emt 0:02:57]} exd5 {[%emt 0:00:04]} 26. Qd3 {[%emt 0:02:33]} Qc4 {[%emt 0:09:01]} 27. Qxc4 {[%emt 0:04:41]} dxc4 {[%emt 0:00:02]} 28. e6 {[%emt 0:02:30]} Be8 {[%emt 0:02:04]} 29. Ne5 {[%emt 0:02:45]} c3 {[%emt 0:01:40]} 30. bxc3 {[%emt 0:00:06]} Nxc3 {[%emt 0:00:01]} 31. Nf5 {[%emt 0:01:55]} Bb4 {[%emt 0:01:27]} 32. b6 {[%emt 0:01:57]} Ne4 {[%emt 0:04:12]} 33. Nd3 {[%emt 0:01:28]} Ba3 {[%emt 0:02:34]} 34. Bd4 {[%emt 0:04:38]} g6 {[%emt 0:01:30]} 35. Ne3 {[%emt 0:01:18]} Bb5 {[%emt 0:01:10]} 36. Ne5 {[%emt 0:01:20]} Bc5 {[%emt 0:01:09]} 37. Bxc5 {[%emt 0:00:53]} Nxc5 {[%emt 0:00:01]} 38. e7 {[%emt 0:00:36]} a4 {[%emt 0:00:23]} 39. Nd5 {[%emt 0:01:11]} a3 {[%emt 0:00:26]} 40. Nc3 {[%emt 0:00:29]} Be8 {[%emt 0:00:42]} 41. Nc4 {[%emt 0:15:32]} Na4 {[%emt 0:04:31]} 42. Na2 {[%emt 0:00:00]} Kf7 {[%emt 0:00:34]} 43. Nxa3 {[%emt 0:00:00]} Nxb6 {[%emt 0:00:17]} 44. Kg1 {[%emt 0:00:00]} Kxe7 {[%emt 0:00:11]} 45. Kf2 {[%emt 0:00:00]} Kd6 {[%emt 0:00:18]} 46. Ke3 {[%emt 0:00:00]} Kc5 {[%emt 0:00:23]} 47. Kf4 {[%emt 0:00:00]} h6 {[%emt 0:01:49]} 48. Nc2 {[%emt 0:00:00]} Nc4 {[%emt 0:00:45]} 49. h4 {[%emt 0:00:00]} Ba4 {[%emt 0:02:18]} 50. Ne1 {[%emt 0:00:00]} Bb3 {[%emt 0:01:56]} 51. Nc1 {[%emt 0:00:00]} Bd1 {[%emt 0:01:56]} 52. Ke4 {[%emt 0:01:23]} Nd6+ {[%emt 0:01:31]} 53. Ke5 {[%emt 0:00:30]} Nf5 {[%emt 0:00:33]} 54. Ned3+ {[%emt 0:01:38]} Kc6 {[%emt 0:00:54]} 55. Kf6 {[%emt 0:04:52]} Nxh4 {[%emt 0:00:49]} 56. g3 {[%emt 0:00:04]} Nf5 {[%emt 0:01:28]} 57. Kxg6 {[%emt 0:00:07]} Nxg3 {[%emt 0:00:16]} 58. Kxh6 {[%emt 0:00:06]} b5 {[%emt 0:01:08]} 59. Kg5 {[%emt 0:03:16]} Ne2 {[%emt 0:01:11]} 60. Na2 {[%emt 0:01:25]} Kd5 {[%emt 0:00:41]} 61. Nf4+ {[%emt 0:04:02]} Kc4 {[%emt 0:01:02]} 62. Ng2 {[%emt 0:02:55]} Bb3 {[%emt 0:00:51]} 63. Ne3+ {[%emt 0:00:32]} Kd3 {[%emt 0:00:14]} 64. Nb4+ {[%emt 0:01:05]} Kxe3 {[%emt 0:00:04]} 65. Na6 {[%emt 0:00:08]} Bc4 {[%emt 0:01:06]} 66. Kf5 {[%emt 0:00:30]} Kd4 {[%emt 0:00:11]} 67. Kf6 {[%emt 0:00:05]} Nc3 {[%emt 0:00:38]} 68. Ke7 {[%emt 0:00:05]} Ne4 {[%emt 0:00:54]} 69. Nb4 {[%emt 0:00:15]} Kc5 {[%emt 0:00:43]} 70. Na6+ {[%emt 0:00:05]} Kb6 {[%emt 0:00:09]} 71. Nb4 {[%emt 0:00:03]} Ka5 {[%emt 0:00:08]} 72. Nc6+ {[%emt 0:00:09]} Ka4 {[%emt 0:00:06]} 73. Kd7 {[%emt 0:01:32]} Bd5 {[%emt 0:00:42]} 74. Nd4 {[%emt 0:00:35]} b4 {[%emt 0:00:11]} 75. Kc7 {[%emt 0:00:11]} Bc4 {[%emt 0:01:02]} 76. Kc6 {[%emt 0:00:05]} Bd3 {[%emt 0:01:36]} 77. Kd5 {[%emt 0:00:20]} Nc3+ {[%emt 0:00:27]} 78. Ke5 {[%emt 0:00:38]} Nb5 {[%emt 0:00:20]} 79. Ne6 {[%emt 0:00:13]} Ka3 {[%emt 0:00:36]} 80. Nc5 {[%emt 0:00:06]} Bf1 {[%emt 0:00:27]} 81. Ke4 {[%emt 0:00:43]} Nc3+ {[%emt 0:00:17]} 82. Ke3 {[%emt 0:00:10]} Na4 {[%emt 0:00:07]} 83. Ne4 {[%emt 0:01:14]} b3 {[%emt 0:00:20]} 84. Nd2 {[%emt 0:01:10]} b2 {[%emt 0:00:15]} 85. Kf2 {[%emt 0:00:17]} Bb5 {[%emt 0:00:27]} 86. Ke1 {[%emt 0:00:09]} Nc3 87. Kf2 {[%emt 0:00:14]} Ne4+ {[%emt 0:00:39] Nc4+} 0-1

[Event "Bamberg-Open 2019"]
[Site "Bamberg"]
[Date "2019.06.01"]
[Round "6.22"]
[White "Krauseneck, Peter"]
[Black "Syed, Tareq"]
[Result "1/2-1/2"]
[ECO "A01"]
[WhiteElo "2136"]
[BlackElo "2001"]
[Annotator "ChessBase"]
[PlyCount "86"]
[EventDate "2019.05.12"]
[EventType "swiss"]
[EventCountry "GER"]
[SourceTitle "playchess.com"]
[Source "ChessBase"]
[SourceQuality "1"]
[TimeControl "40/5400+30:900+30"]

1. b3 {[%emt 0:00:04]} Nh6 {[%emt 0:02:01]} 2. Bb2 {[%emt 0:01:35]} f6 {[%emt 0:00:03]} 3. d4 {[%emt 0:00:57]} d5 {[%emt 0:04:09]} 4. Nd2 {[%emt 0:00:46]} c5 {[%emt 0:09:06]} 5. e3 {[%emt 0:04:39]} Bf5 {[%emt 0:04:49]} 6. Ngf3 {[%emt 0:03:04]} Nc6 {[%emt 0:04:52]} 7. Bb5 {[%emt 0:01:34]} a6 {[%emt 0:07:07]} 8. Bxc6+ {[%emt 0:00:19]} bxc6 {[%emt 0:00:02]} 9. O-O {[%emt 0:00:49]} Bd7 {[%emt 0:03:55]} 10. Re1 {[%emt 0:02:17]} e6 {[%emt 0:01:08]} 11. e4 {[%emt 0:09:21]} Be7 {[%emt 0:01:20]} 12. c4 {[%emt 0:05:02]} cxd4 {[%emt 0:04:35]} 13. exd5 {[%emt 0:07:54]} cxd5 {[%emt 0:10:30]} 14. cxd5 {[%emt 0:01:04]} e5 {[%emt 0:03:41]} 15. Nxd4 {[%emt 0:00:14]} Qa5 {[%emt 0:02:20]} 16. Nc6 {[%emt 0:10:42]} Qxd5 {[%emt 0:07:20]} 17. Nxe7 {[%emt 0:00:13]} Kxe7 {[%emt 0:00:02]} 18. Ba3+ {[%emt 0:00:28]} Ke6 {[%emt 0:02:47]} 19. Ne4 {[%emt 0:01:18]} Qxd1 {[%emt 0:00:53]} 20. Rexd1 {[%emt 0:00:36]} Bb5 {[%emt 0:00:43]} 21. Rd6+ {[%emt 0:02:44]} Kf5 {[%emt 0:02:13]} 22. f3 {[%emt 0:01:22]} Rhd8 {[%emt 0:01:23]} 23. Rad1 {[%emt 0:01:04]} Rxd6 {[%emt 0:00:38]} 24. Rxd6 {[%emt 0:01:55]} Nf7 {[%emt 0:02:35]} 25. Rb6 {[%emt 0:07:17]} Rd8 {[%emt 0:02:57]} 26. g4+ {[%emt 0:03:25]} Kg6 {[%emt 0:02:17]} 27. h4 {[%emt 0:06:38]} h6 {[%emt 0:05:08]} 28. h5+ {[%emt 0:04:32]} Kh7 {[%emt 0:00:16]} 29. Kf2 {[%emt 0:05:28]} Rc8 {[%emt 0:07:47]} 30. Nc5 {[%emt 0:01:38]} Rc6 {[%emt 0:01:43]} 31. Rxc6 Bxc6 {[%emt 0:00:01]} 32. Nxa6 {[%emt 0:01:58]} Ng5 {[%emt 0:00:11]} 33. Bc1 {[%emt 0:01:50]} Nxf3 {[%emt 0:00:14]} 34. Nb4 {[%emt 0:01:03]} Bb7 {[%emt 0:00:35]} 35. Bb2 {[%emt 0:05:49]} Nh2 {[%emt 0:02:08]} 36. Kg3 {[%emt 0:02:02]} Nf1+ {[%emt 0:00:01]} 37. Kh3 {[%emt 0:00:59]} Nd2 {[%emt 0:01:21]} 38. Bc1 {[%emt 0:00:34]} Ne4 {[%emt 0:00:48]} 39. Be3 {[%emt 0:01:32]} Nd6 {[%emt 0:04:41]} 40. a4 {[%emt 0:00:42]} f5 {[%emt 0:00:22]} 41. gxf5 {[%emt 0:17:30]} Nxf5 {[%emt 0:15:06]} 42. Bf2 {[%emt 0:01:42]} e4 {[%emt 0:01:00]} 43. Nc2 {[%emt 0:00:36]} Bd5 {[%emt 0:00:00]} 1/2-1/2

[Event "Bamberg-Open 2019"]
[Site "Bamberg"]
[Date "2019.06.01"]
[Round "6.23"]
[White "Boehme, Markus"]
[Black "Bunk, Wolfgang"]
[Result "1/2-1/2"]
[ECO "A05"]
[WhiteElo "2118"]
[BlackElo "1995"]
[Annotator "ChessBase"]
[PlyCount "64"]
[EventDate "2019.05.12"]
[EventType "swiss"]
[EventCountry "GER"]
[SourceTitle "playchess.com"]
[Source "ChessBase"]
[SourceQuality "1"]
[TimeControl "40/5400+30:900+30"]

1. Nf3 {[%emt 0:00:00]} Nf6 {[%emt 0:00:48]} 2. g3 {[%emt 0:00:00]} c5 {[%emt 0:00:48]} 3. Bg2 {[%emt 0:00:00]} Nc6 {[%emt 0:00:31]} 4. O-O {[%emt 0:00:07]} e5 {[%emt 0:01:20]} 5. d3 {[%emt 0:04:46]} d5 {[%emt 0:01:43]} 6. e4 {[%emt 0:00:15]} Be7 {[%emt 0:05:20]} 7. exd5 {[%emt 0:05:56]} Nxd5 {[%emt 0:00:11]} 8. Re1 {[%emt 0:00:25]} f6 {[%emt 0:00:56]} 9. c3 {[%emt 0:01:20]} Nc7 {[%emt 0:08:00]} 10. Nh4 {[%emt 0:12:00]} O-O {[%emt 0:16:11]} 11. Be4 {[%emt 0:13:06]} f5 {[%emt 0:10:12]} 12. Bxc6 {[%emt 0:00:39]} Bxh4 {[%emt 0:01:13]} 13. Bg2 {[%emt 0:04:01]} Bf6 {[%emt 0:00:11]} 14. Be3 {[%emt 0:05:59]} Ne6 {[%emt 0:04:30]} 15. a4 {[%emt 0:05:06]} g5 {[%emt 0:04:20]} 16. Na3 {[%emt 0:03:03]} Rb8 {[%emt 0:12:31]} 17. Qb3 {[%emt 0:06:45]} Kh8 {[%emt 0:01:18]} 18. Nc4 {[%emt 0:08:28]} Qc7 {[%emt 0:07:34]} 19. Rad1 {[%emt 0:04:57]} Bd7 {[%emt 0:01:51]} 20. Bc1 {[%emt 0:00:43]} b6 {[%emt 0:00:40]} 21. Ne3 {[%emt 0:00:48]} f4 {[%emt 0:05:49]} 22. Nd5 {[%emt 0:00:38]} Qd6 {[%emt 0:00:23]} 23. Be4 {[%emt 0:02:13]} Bg7 {[%emt 0:02:04]} 24. Qc2 {[%emt 0:00:59]} Bc6 {[%emt 0:01:33]} 25. Qb3 {[%emt 0:03:20]} Qd7 {[%emt 0:00:41]} 26. Qa2 {[%emt 0:00:58]} Bxa4 {[%emt 0:00:51]} 27. b3 {[%emt 0:00:01]} Bc6 {[%emt 0:00:25]} 28. c4 {[%emt 0:00:24]} Nd4 {[%emt 0:04:25]} 29. Bb2 {[%emt 0:00:34]} Rf7 {[%emt 0:03:26]} 30. Bxd4 {[%emt 0:00:34]} exd4 {[%emt 0:00:50]} 31. f3 {[%emt 0:01:23]} Qd6 {[%emt 0:00:44]} 32. g4 {[%emt 0:00:22]} Be5 {[%emt 0:02:27]} 1/2-1/2

[Event "Bamberg-Open 2019"]
[Site "Bamberg"]
[Date "2019.06.01"]
[Round "6.24"]
[White "Ziegenfuss, Antonia"]
[Black "Hoekstra, Peter"]
[Result "0-1"]
[ECO "E73"]
[WhiteElo "2111"]
[BlackElo "1979"]
[Annotator "ChessBase"]
[PlyCount "106"]
[EventDate "2019.05.12"]
[EventType "swiss"]
[EventCountry "GER"]
[SourceTitle "playchess.com"]
[Source "ChessBase"]
[SourceQuality "1"]
[TimeControl "40/5400+30:900+30"]

1. d4 {[%emt 0:00:00]} Nf6 {[%emt 0:04:42]} 2. c4 {[%emt 0:00:00]} g6 {[%emt 0:00:04]} 3. Nc3 {[%emt 0:00:00]} Bg7 {[%emt 0:00:13]} 4. e4 {[%emt 0:00:00]} d6 {[%emt 0:00:05]} 5. Be2 {[%emt 0:00:00]} O-O {[%emt 0:00:26]} 6. Be3 {[%emt 0:00:09]} e5 {[%emt 0:02:10]} 7. d5 {[%emt 0:00:20]} Na6 {[%emt 0:01:27]} 8. g4 {[%emt 0:00:53]} Nc5 {[%emt 0:00:13]} 9. f3 {[%emt 0:02:33]} h5 {[%emt 0:01:02]} 10. h3 {[%emt 0:02:04]} a5 {[%emt 0:00:28]} 11. Qd2 {[%emt 0:02:29]} Nh7 {[%emt 0:07:43]} 12. O-O-O {[%emt 0:10:57]} h4 {[%emt 0:00:21]} 13. g5 {[%emt 0:14:00]} f6 {[%emt 0:06:53]} 14. gxf6 {[%emt 0:09:04]} Bxf6 {[%emt 0:03:45]} 15. Kb1 {[%emt 0:11:54]} Bg5 {[%emt 0:04:15]} 16. Bxg5 {[%emt 0:02:18]} Qxg5 {[%emt 0:01:17]} 17. Qxg5 {[%emt 0:04:41]} Nxg5 {[%emt 0:00:05]} 18. Nb5 {[%emt 0:02:11]} Rf7 {[%emt 0:01:38]} 19. Rh2 {[%emt 0:02:38]} Kg7 {[%emt 0:17:35]} 20. Rg2 {[%emt 0:11:39]} Kh6 {[%emt 0:02:00]} 21. b3 {[%emt 0:00:58]} Na6 {[%emt 0:06:43]} 22. Na3 {[%emt 0:07:40]} Rf4 {[%emt 0:13:15]} 23. Rh2 {[%emt 0:03:10]} Bd7 {[%emt 0:01:02]} 24. Nc2 {[%emt 0:00:54]} Nh7 {[%emt 0:08:01]} 25. Ne3 {[%emt 0:01:45]} g5 {[%emt 0:00:10]} 26. Kb2 {[%emt 0:02:28]} Nc5 {[%emt 0:00:20]} 27. Kc3 {[%emt 0:00:52]} Rf7 {[%emt 0:04:35]} 28. Bf1 {[%emt 0:02:09]} Nf6 {[%emt 0:00:22]} 29. a3 {[%emt 0:02:26]} Nh5 {[%emt 0:01:42]} 30. Ra2 {[%emt 0:01:19]} Ng3 {[%emt 0:01:03]} 31. Rb1 {[%emt 0:01:11]} b6 {[%emt 0:02:13]} 32. Raa1 {[%emt 0:01:01]} a4 {[%emt 0:00:12]} 33. b4 {[%emt 0:01:42]} Nb3 {[%emt 0:00:04]} 34. Ra2 {[%emt 0:00:06]} Raf8 {[%emt 0:00:11]} 35. Bg2 {[%emt 0:00:38]} Nd4 {[%emt 0:01:12]} 36. Kd3 {[%emt 0:00:31]} Nxf3 {[%emt 0:05:32]} 37. Nxf3 {[%emt 0:00:51]} Rxf3 {[%emt 0:00:03]} 38. Bxf3 {[%emt 0:00:06]} Rxf3 {[%emt 0:00:04]} 39. Rh2 {[%emt 0:00:31]} Be8 {[%emt 0:00:27]} 40. Re1 {[%emt 0:01:05]} Bg6 {[%emt 0:00:32]} 41. b5 {[%emt 0:09:48]} Bxe4+ {[%emt 0:07:37]} 42. Kc3 {[%emt 0:01:09]} Nf5 {[%emt 0:05:50]} 43. Kd2 {[%emt 0:00:22]} Kg6 {[%emt 0:02:34]} 44. Nxf5 {[%emt 0:02:45]} Kxf5 {[%emt 0:01:05]} 45. Re3 {[%emt 0:00:21]} Kf4 {[%emt 0:00:52]} 46. Rhe2 {[%emt 0:01:35]} Bf5 {[%emt 0:00:18]} 47. Rxf3+ {[%emt 0:01:01]} Kxf3 {[%emt 0:00:05]} 48. Ke1 {[%emt 0:01:10]} Bxh3 {[%emt 0:01:38]} 49. Rf2+ {[%emt 0:00:12]} Kg3 {[%emt 0:00:06]} 50. Rf7 {[%emt 0:00:23]} Bg4 {[%emt 0:00:22]} 51. Rxc7 {[%emt 0:00:24]} h3 {[%emt 0:00:05]} 52. Rh7 {[%emt 0:01:01]} h2 {[%emt 0:00:04]} 53. c5 {[%emt 0:01:04]} Bh3 {[%emt 0:00:08]} 0-1

[Event "Bamberg-Open 2019"]
[Site "Bamberg"]
[Date "2019.06.01"]
[Round "6.25"]
[White "Wolf, Pablo"]
[Black "Boehme, Sebastian"]
[Result "1-0"]
[ECO "B10"]
[WhiteElo "1976"]
[BlackElo "2103"]
[Annotator "ChessBase"]
[PlyCount "78"]
[EventDate "2019.05.12"]
[EventType "swiss"]
[EventCountry "GER"]
[SourceTitle "playchess.com"]
[Source "ChessBase"]
[SourceQuality "1"]
[TimeControl "40/5400+30:900+30"]

1. e4 {[%emt 0:00:00]} c6 {[%emt 0:00:00]} 2. Ne2 {[%emt 0:00:00]} d5 {[%emt 0:00:35]} 3. e5 {[%emt 0:00:00]} Bf5 {[%emt 0:01:43]} 4. Ng3 {[%emt 0:00:00]} Bg6 {[%emt 0:00:22]} 5. h4 {[%emt 0:00:07]} h5 {[%emt 0:01:09]} 6. d4 {[%emt 0:00:21]} e6 {[%emt 0:02:19]} 7. Be2 {[%emt 0:01:15]} Be7 {[%emt 0:04:20]} 8. Nxh5 {[%emt 0:06:48]} Bxh5 {[%emt 0:02:43]} 9. Bxh5 {[%emt 0:01:01]} c5 {[%emt 0:03:49]} 10. Qg4 {[%emt 0:06:31]} Kf8 {[%emt 0:04:12]} 11. Rh3 {[%emt 0:00:46]} Nh6 {[%emt 0:07:37]} 12. Bxh6 {[%emt 0:03:30]} Rxh6 {[%emt 0:00:54]} 13. Rf3 {[%emt 0:00:58]} f5 {[%emt 0:07:34]} 14. exf6 {[%emt 0:05:02]} Bxf6 {[%emt 0:00:39]} 15. dxc5 {[%emt 0:03:34]} Nc6 {[%emt 0:02:38]} 16. Rf4 {[%emt 0:13:10]} e5 {[%emt 0:05:17]} 17. Ra4 {[%emt 0:01:07]} Nd4 {[%emt 0:08:36]} 18. Na3 {[%emt 0:01:44]} g6 {[%emt 0:00:45]} 19. Bxg6 {[%emt 0:08:23]} Rxh4 {[%emt 0:00:25]} 20. Rxd4 {[%emt 0:00:12]} exd4 {[%emt 0:09:21]} 21. Qe6 {[%emt 0:00:10]} Qe7 {[%emt 0:00:25]} 22. Qxe7+ {[%emt 0:00:05]} Bxe7 {[%emt 0:00:32]} 23. O-O-O {[%emt 0:01:41]} Rg4 {[%emt 0:02:34]} 24. Bf5 {[%emt 0:04:05]} Bg5+ {[%emt 0:01:33]} 25. Kb1 {[%emt 0:00:51]} Rxg2 {[%emt 0:00:09]} 26. Nb5 {[%emt 0:00:49]} Rxf2 {[%emt 0:01:26]} 27. Be6 {[%emt 0:01:56]} Re8 {[%emt 0:08:20]} 28. Bxd5 {[%emt 0:02:00]} d3 {[%emt 0:00:20]} 29. cxd3 {[%emt 0:01:32]} Ree2 {[%emt 0:00:21]} 30. Nxa7 {[%emt 0:01:31]} Bf6 {[%emt 0:00:45]} 31. Rg1 {[%emt 0:02:17]} Rxb2+ {[%emt 0:00:53]} 32. Kc1 {[%emt 0:00:16]} Bg7 {[%emt 0:13:57]} 33. Rxg7 {[%emt 0:04:24]} Kxg7 {[%emt 0:00:06]} 34. Bb3 {[%emt 0:00:13]} Rbe2 {[%emt 0:01:00]} 35. Kd1 {[%emt 0:01:37]} Rh2 {[%emt 0:02:08]} 36. Nb5 {[%emt 0:02:05]} Reg2 {[%emt 0:01:01]} 37. Kc1 {[%emt 0:00:04]} Rg1+ {[%emt 0:00:35]} 38. Bd1 {[%emt 0:00:06]} Rxa2 {[%emt 0:00:28]} 39. Nc3 {[%emt 0:00:20]} Ra3 {[%emt 0:00:49]} 1-0

[Event "Bamberg-Open 2019"]
[Site "Bamberg"]
[Date "2019.06.01"]
[Round "6.26"]
[White "Haasner, Tom"]
[Black "Schenk, Alexander"]
[Result "1-0"]
[ECO "D00"]
[WhiteElo "1963"]
[BlackElo "2096"]
[Annotator "NA"]
[PlyCount "83"]
[EventDate "2019.05.12"]
[EventType "swiss"]
[EventCountry "GER"]
[SourceTitle "playchess.com"]
[Source "ChessBase"]
[SourceQuality "1"]
[TimeControl "40/5400+30:900+30"]

1. d4 {[%emt 0:00:00]} d5 {[%emt 0:00:00]} 2. Bf4 {[%emt 0:00:00]} c5 {[%emt 0:00:00]} 3. e3 {[%emt 0:01:07]} e6 {[%emt 0:00:38]} 4. c3 {[%emt 0:02:02]} Nc6 {[%emt 0:00:34]} 5. Nf3 {[%emt 0:00:54]} Nf6 {[%emt 0:00:39]} 6. Nbd2 {[%emt 0:00:14]} Bd6 {[%emt 0:00:28]} 7. Bg3 {[%emt 0:00:26]} O-O {[%emt 0:00:10]} 8. Bd3 {[%emt 0:00:29]} Qe7 {[%emt 0:00:14]} 9. Ne5 {[%emt 0:00:18]} Bxe5 {[%emt 0:00:20]} 10. dxe5 {[%emt 0:00:36] D02: 1 d4 d5 2 Nf3 sidelines, including 2...Nf6 3 g3 and 2...Nf6 3 Bf4} Nd7 {[%emt 0:00:07]} 11. f4 {[%emt 0:06:15]} f6 {[%emt 0:00:21]} 12. Nf3 {[%emt 0:16:10]} (12. Bh4 Qf7 13. exf6 Nxf6 14. O-O e5 15. Bxf6 gxf6 16. e4 Kh8 17. exd5 Qxd5 18. Be4 Qd6 19. Nc4 Qe7 20. Qh5 exf4 21. Rxf4 Ne5 22. Nxe5 {1-0 (22) Kramnik,V (2777)-Rasmussen,A (2498) Berlin 2015}) 12... fxe5 {[%emt 0:10:24]} 13. fxe5 {[%emt 0:06:43]} Qe8 {[%emt 0:10:12]} 14. Qc2 $146 {[%emt 0:12:38]} ({Predecessor:} 14. O-O Qh5 15. e4 Nb6 16. a4 a5 17. h4 Bd7 18. exd5 Nxd5 {1-0 (45) Dos Santos,H (2270)-Moraes,A Sao Paulo 1997}) 14... g6 {[%emt 0:07:27]} 15. b3 {[%emt 0:05:13]} a6 {[%emt 0:03:59]} 16. Bf4 {[%emt 0:04:29]} Qe7 {[%emt 0:01:26]} 17. O-O {[%emt 0:08:39]} Qg7 {[%emt 0:01:24]} 18. Kh1 {[%emt 0:00:42]} b5 {[%emt 0:12:33]} 19. c4 {[%emt 0:04:02]} Nb4 {[%emt 0:05:11]} 20. Qc3 {[%emt 0:01:13]} bxc4 {[%emt 0:03:12]} 21. bxc4 {[%emt 0:00:19]} d4 {[%emt 0:00:22]} 22. Nxd4 {[%emt 0:06:33]} Nxe5 {[%emt 0:08:28]} 23. Be4 {[%emt 0:01:10]} Ra7 {[%emt 0:17:45]} 24. Nf3 {[%emt 0:01:45]} Nxf3 {[%emt 0:01:03]} 25. Qxg7+ {[%emt 0:00:16]} Kxg7 {[%emt 0:00:26]} 26. Rxf3 {[%emt 0:01:24]} Rd7 {[%emt 0:04:55] [#]} 27. Bh6+ $1 {[%emt 0:02:12] Discovered Attack} Kxh6 {[%emt 0:00:06]} 28. Rxf8 $18 {[%emt 0:00:18]} Bb7 {[%emt 0:00:29]} 29. Bxb7 {[%emt 0:00:49]} Rxb7 {[%emt 0:00:04]} 30. Rc8 {[%emt 0:04:53]} Nc2 {[%emt 0:00:48]} 31. Rc1 {[%emt 0:00:17]} Nxe3 {[%emt 0:00:09]} 32. Rxc5 {[%emt 0:01:23]} Rb2 {[%emt 0:00:07]} 33. h3 {[%emt 0:03:43]} Nxg2 {[%emt 0:00:11]} 34. Re5 {[%emt 0:02:11]} Nh4 {[%emt 0:00:40]} 35. Re3 {[%emt 0:00:31]} Nf5 {[%emt 0:00:13]} 36. Rb3 {[%emt 0:01:02]} Rxa2 {[%emt 0:00:16]} 37. c5 {[%emt 0:00:30]} Nd4 {[%emt 0:00:07]} 38. Re3 {[%emt 0:01:50]} Nf5 {[%emt 0:01:41]} 39. Rec3 {[%emt 0:02:32]} e5 {[%emt 0:07:02]} 40. c6 {[%emt 0:00:18]} Ne7 {[%emt 0:00:27]} 41. c7 {[%emt 0:15:34]} Nc8 {[%emt 0:15:03]} 42. Rd3 {[%emt 0:00:39]} 1-0

[Event "Bamberg-Open 2019"]
[Site "Bamberg"]
[Date "2019.06.02"]
[Round "7.2"]
[White "Stets, Dmitry"]
[Black "Pacher, Milan"]
[Result "1-0"]
[ECO "B90"]
[WhiteElo "2391"]
[BlackElo "2396"]
[Annotator "ChessBase"]
[PlyCount "112"]
[EventDate "2019.05.12"]
[EventType "swiss"]
[EventCountry "GER"]
[SourceTitle "playchess.com"]
[Source "ChessBase"]
[SourceQuality "1"]
[TimeControl "40/5400+30:900+30"]

1. e4 {[%emt 0:00:00]} c5 {[%emt 0:08:13]} 2. Nc3 {[%emt 0:00:00]} d6 {[%emt 0:00:08]} 3. Nf3 {[%emt 0:00:46]} Nf6 {[%emt 0:00:21]} 4. d4 {[%emt 0:00:07]} cxd4 {[%emt 0:00:03]} 5. Nxd4 {[%emt 0:00:07]} a6 {[%emt 0:00:05]} 6. Be3 {[%emt 0:00:11]} e5 {[%emt 0:00:16]} 7. Nb3 {[%emt 0:00:09]} Be6 {[%emt 0:00:06]} 8. Qd2 {[%emt 0:00:25]} Nbd7 {[%emt 0:01:03]} 9. O-O-O {[%emt 0:00:20]} b5 {[%emt 0:01:14]} 10. f4 {[%emt 0:00:18]} Be7 {[%emt 0:08:01]} 11. h3 {[%emt 0:00:41]} O-O {[%emt 0:02:43]} 12. g4 {[%emt 0:16:38]} b4 {[%emt 0:11:31]} 13. Nd5 {[%emt 0:00:25]} Bxd5 {[%emt 0:00:16]} 14. exd5 {[%emt 0:00:37]} a5 {[%emt 0:00:19]} 15. Kb1 {[%emt 0:02:11]} a4 {[%emt 0:10:49]} 16. Nc1 {[%emt 0:00:32]} Qb8 {[%emt 0:01:39]} 17. Qg2 {[%emt 0:06:56]} exf4 {[%emt 0:08:15]} 18. Bxf4 {[%emt 0:00:18]} Rc8 {[%emt 0:00:42]} 19. Bd3 {[%emt 0:09:45]} Nb6 {[%emt 0:05:43]} 20. Bf5 {[%emt 0:07:48]} Rc7 {[%emt 0:02:29]} 21. g5 {[%emt 0:01:44]} Nh5 {[%emt 0:01:30]} 22. Be3 {[%emt 0:03:30]} Nc4 {[%emt 0:03:56]} 23. Bd4 {[%emt 0:00:35]} g6 {[%emt 0:09:04]} 24. Be4 {[%emt 0:05:25]} Bf8 {[%emt 0:01:22]} 25. Bf3 {[%emt 0:02:50]} Ng7 {[%emt 0:09:47]} 26. Bg4 {[%emt 0:01:32]} Qb5 {[%emt 0:02:16]} 27. h4 {[%emt 0:02:13]} b3 {[%emt 0:02:23]} 28. cxb3 {[%emt 0:10:50]} axb3 {[%emt 0:00:05]} 29. Nxb3 {[%emt 0:01:29]} Qa4 {[%emt 0:02:11]} 30. Nc1 {[%emt 0:02:22]} Rb8 {[%emt 0:00:25]} 31. Nb3 {[%emt 0:09:10]} Ra8 {[%emt 0:00:46]} 32. Nc1 {[%emt 0:00:08]} Rb8 {[%emt 0:01:55]} 33. Nb3 {[%emt 0:00:05]} Nf5 {[%emt 0:02:06]} 34. Bxf5 {[%emt 0:00:44]} gxf5 {[%emt 0:00:02]} 35. Rd3 {[%emt 0:04:13]} Bg7 {[%emt 0:00:34]} 36. Bxg7 {[%emt 0:00:18]} Kxg7 {[%emt 0:00:44]} 37. Qf2 {[%emt 0:03:47]} Ra7 {[%emt 0:00:55]} 38. Qd4+ {[%emt 0:00:33]} Kg8 {[%emt 0:00:02]} 39. Kc2 {[%emt 0:00:55]} Rb4 {[%emt 0:00:31]} 40. Qf6 {[%emt 0:00:56]} Qe8 {[%emt 0:03:47]} 41. Kb1 {[%emt 0:18:29]} Qa8 {[%emt 0:05:40]} 42. Qc3 {[%emt 0:00:00]} Rxa2 {[%emt 0:01:10]} 43. Rh2 {[%emt 0:00:00]} Rba4 {[%emt 0:05:04]} 44. Rd4 {[%emt 0:00:00]} Na3+ {[%emt 0:02:41]} 45. Kc1 {[%emt 0:00:00]} Nb5 {[%emt 0:01:15]} 46. Rxa4 {[%emt 0:00:00]} Rxa4 {[%emt 0:00:02]} 47. Qc6 {[%emt 0:01:33]} Qa7 {[%emt 0:00:15]} 48. Re2 {[%emt 0:01:00]} Rb4 {[%emt 0:01:47]} 49. Qc8+ {[%emt 0:02:01]} Kg7 {[%emt 0:00:03]} 50. Qxf5 {[%emt 0:00:07]} Nc7 {[%emt 0:02:06]} 51. Qf6+ {[%emt 0:01:10]} Kg8 {[%emt 0:00:02]} 52. Re7 {[%emt 0:01:30]} Qg1+ {[%emt 0:00:27]} 53. Kc2 {[%emt 0:00:26]} Qh2+ {[%emt 0:01:54]} 54. Kb1 {[%emt 0:00:41]} Rf4 {[%emt 0:00:33]} 55. Qc3 {[%emt 0:00:14]} Qg1+ {[%emt 0:00:30]} 56. Nc1 {[%emt 0:00:19]} Qe3 1-0